Cogmind - Beta 13 @@@ ROGUE MODE // 2024.05.16 @ 00:53:29 Player: GFYguy Result: Destroyed by H-66 Slayer with Gauss Rifle Performance ------------- Evolutions (1) 500 Regions Visited (6) 1200 Robots Destroyed (45) 225 Value Destroyed (1055) 1055 Prototype IDs (2) 40 Alien Tech Used (0) 0 Bonus (759) 759 TOTAL SCORE: 3779 Bonus ------- Follower Combat Kills 159 Met Imprinter 300 Was Imprinted 300 Cogmind --------- Core Integrity 0/400 Matter 212/300 Energy 227/290 System Corruption 0% Temperature Cool (7) Movement Treading (170) Location -6/Proximity Caves Parts ------- > --- POWER (1) -------- Improved Deuterium Engine > --- PROPULSION (3) --- Armored Treads Armored Treads > --- UTILITY (3) ------ Small Storage Unit ECM Suite > --- WEAPON (2) ------- Barrage Gun Gauss Rifle > --- INVENTORY (8) ---- Light Angular Momentum Engine Compact Wheel Compact Wheel Cooling System Particle Charger Rocket Launcher Peak State ------------ > --- POWER ------------ Light Angular Momentum Engine > --- PROPULSION ------- Armored Treads Compact Wheel Compact Wheel > --- UTILITY ---------- Cooling System Small Storage Unit Experimental Sensor Array > --- WEAPON ----------- Bore Cannon Enhanced Flamer > --- INVENTORY -------- Heavy Ion Engine Cooling System Cooling System ECM Suite Barrage Gun Gauss Rifle Rocket Launcher Enhanced Flamer [Rating: 32] Favorites ----------- Power Heavy Ion Engine Engine Heavy Ion Engine Propulsion Compact Wheel Treads Armored Treads Wheel Compact Wheel Utility Small Storage Unit Device Cooling System Storage Small Storage Unit Weapon Beam Cannon Energy Gun EM Pulse Gun Energy Cannon Beam Cannon Ballistic Gun Barrage Gun Ballistic Cannon Light Cannon Launcher Rocket Launcher Special Weapon Enhanced Flamer Build | -11 -10 -10 -9 -9 -7 -6 ------- Run | Yrd Mat Min Mat Min Zio Pro Slots Evolved 2 | . . . 2 . . . Power . | . . . . . . . Propulsion 1 | . . . 1 . . . Utility 1 | . . . 1 . . . Weapon . | . . . . . . . Parts Attached 50 | 8 3 7 12 2 1 17 Power 9 | 1 . 1 3 . . 4 Engine 9 | 1 . 1 3 . . 4 Core . | . . . . . . . Reactor . | . . . . . . . Propulsion 14 | 2 1 2 4 . . 5 Treads 4 | . . . . . . 4 Leg . | . . . . . . . Wheel 10 | 2 1 2 4 . . 1 Hover . | . . . . . . . Flight . | . . . . . . . Utility 10 | 2 . 1 4 . . 3 Device 9 | 1 . 1 4 . . 3 Storage 1 | 1 . . . . . . Processor . | . . . . . . . Hackware . | . . . . . . . Protection . | . . . . . . . Artifact . | . . . . . . . Weapon 17 | 3 2 3 1 2 1 5 Energy Gun 1 | 1 . . . . . . Energy Cannon 5 | . . 3 1 1 . . Ballistic Gun 6 | 2 . . . . . 4 Ballistic Cannon 3 | . 2 . . . 1 . Launcher 1 | . . . . 1 . . Special Weapon 1 | . . . . . . 1 Impact Weapon . | . . . . . . . Slashing Weapon . | . . . . . . . Piercing Weapon . | . . . . . . . Special Melee Weapon . | . . . . . . . Unidentified Prototypes 2 | . . 1 1 . . . Parts Lost 14 | . . 3 2 . . 9 Power 1 | . . . . . . 1 Propulsion 6 | . . 2 1 . . 3 Utility 4 | . . . 1 . . 3 Weapon 3 | . . 1 . . . 2 Highest Loss Streak 4 | . . 3 1 . . 4 To Critical Strikes . | . . . . . . . Average Slot Usage (%) 99 | . 100 99 99 100 100 96 Engine 12 | . 14 14 11 11 11 10 Treads 2 | . . . . . . 15 Wheel 28 | . 28 27 32 33 33 16 Device 18 | . 14 14 22 22 22 20 Storage 12 | . 14 14 11 11 11 11 Energy Cannon 8 | . . 6 22 14 10 . Ballistic Gun 1 | . 1 . . . . 10 Ballistic Cannon 9 | . 24 21 . . . 5 Launcher 3 | . . . . 7 11 . Naked Turns . | . . . . . . . Heaviest Build 31 | 14 17 17 23 24 30 31 Greatest Support 60 | 20 20 20 48 48 48 60 Greatest Overweight (x) 1 | . . 1 1 . . 1 Average Overweight (x) . | . . . . . . . Largest Inventory Capacity 8 | 8 8 8 8 8 8 8 Average Capacity 7 | 6 8 8 8 8 8 8 Most Carried 8 | 8 8 8 8 8 8 8 Average Carried 7 | 5 7 7 7 7 7 7 Final Capacity 8 | 8 8 8 8 8 8 8 Final Carried 8 | 6 8 8 8 8 8 6 Class Distribution -------------------- 80% | Mutant 19% | Scavenger-Mutant Dominant Class ---------------- Mutant | -10/Materials Mutant | -10/Mines Scavenger-Mutant | -9/Materials Mutant | -9/Mines Mutant | -7/Zion Mutant | -6/Proximity Caves Resources | -11 -10 -10 -9 -9 -7 -6 ----------- Run | Yrd Mat Min Mat Min Zio Pro Matter Collected 1176 | 291 226 167 100 62 . 330 Remotely . | . . . . . . . Salvage Created 1722 | 167 87 224 813 101 . 330 Parts 85 | 8 6 13 52 3 . 3 Haulers Intercepted 4 | . 1 . 3 . . . Recyclers Shooed 3 | . . . 2 1 . . Parts Field Recycled . | . . . . . . . Retrieved Matter . | . . . . . . . Parts Self-Destructed 6 | . . . . . . 6 Prevented 4 | . . . . . . 4 Kills | -11 -10 -10 -9 -9 -7 -6 ------- Run | Yrd Mat Min Mat Min Zio Pro Combat Hostiles Destroyed 33 | . 1 8 15 3 . 6 Guns 6 | . . . . . . 6 Cannons 24 | . 1 8 15 . . . AOE 3 | . . . . 3 . . Classes Destroyed 10 | 2 3 2 1 1 . 1 Tunneler 3 | 3 . . . . . . Hauler 4 | . 1 . 3 . . . Recycler 5 | 1 . 1 3 . . . Watcher 2 | . 2 . . . . . Swarmer 10 | . . 2 7 . . 1 Grunt 16 | . 1 4 6 2 . 3 Brawler 1 | . . . . 1 . . Sentry 3 | . . . 2 . . 1 Behemoth 1 | . . . . . . 1 Assembled 2 | . . 2 . . . . Best Kill Streak 5 | 4 1 4 5 3 . 3 Combat Bots Only 4 | . 1 3 4 3 . 3 Max Kills in Single Turn 2 | 1 1 1 1 2 . 1 Gunslinging . | . . . . . . . Exploded 2 | . . . . 2 . . Melee . | . . . . . . . Uniques/NPCs Destroyed . | . . . . . . . Combat | -11 -10 -10 -9 -9 -7 -6 -------- Run | Yrd Mat Min Mat Min Zio Pro Hostile Shots Fired 368 | . . 89 78 1 . 200 Missed 118 | . . 31 19 1 . 67 Damage Taken 2899 | . . 538 661 . . 1700 Core 508 | . . 87 189 . . 232 Absorbed by Shields . | . . . . . . . Core Remaining (%) 82 | 100 . 65 . . . . Volleys Fired 139 | 11 12 23 54 4 . 35 Largest 2 | 2 2 2 2 2 . 2 Hottest 137 | 60 70 120 120 93 . 137 Shots Fired 270 | 20 24 46 108 6 . 66 Gun 77 | 20 . . . . . 57 Cannon 188 | . 24 46 108 4 . 6 Launcher 2 | . . . . 2 . . Special 3 | . . . . . . 3 Kinetic 126 | 11 24 28 . . . 63 Thermal 133 | . . 18 108 4 . 3 Explosive 2 | . . . . 2 . . Electromagnetic 9 | 9 . . . . . . Robot Hit Streak 11 | 4 6 6 11 7 . 8 Robot Miss Streak 3 | 1 3 3 3 . . 3 Penetration Max . | . . . . . . . Secondary Targets 2 | . . . . . . 2 Max Gunslinging Chain 1 | . . . . . . 1 Shots Hit Robots 161 | 13 12 24 67 6 . 39 Core Hits 62 | 6 4 11 23 3 . 15 Critical Kills . | . . . . . . . Critical Parts Destroyed 1 | . . . . . . 1 Critical Strikes 6 | 1 1 1 . . . 3 Destroy 3 | . . . . . . 3 Blast 2 | . 1 1 . . . . Corrupt 1 | 1 . . . . . . Melee Attacks . | . . . . . . . Impact . | . . . . . . . Slashing . | . . . . . . . Piercing . | . . . . . . . Sneak Attacks . | . . . . . . . Combat Hostiles . | . . . . . . . Follow-up Attacks . | . . . . . . . Damage Inflicted 2980 | 147 205 434 1194 295 . 705 Guns 758 | 147 . . . . . 611 Cannons 1974 | . 205 434 1194 69 . 72 Explosions 226 | . . . . 226 . . Melee . | . . . . . . . Ramming . | . . . . . . . Kinetic 1223 | 39 205 296 . . . 683 Thermal 1423 | . . 138 1194 69 . 22 Explosive 226 | . . . . 226 . . Electromagnetic 108 | 108 . . . . . . Impact . | . . . . . . . Slashing . | . . . . . . . Piercing . | . . . . . . . Highest Corruption . | . . . . . . . Average Corruption . | . . . . . . . Corruption Purged . | . . . . . . . Corruption Blocked . | . . . . . . . Overload Shots . | . . . . . . . Overflow Damage 9 | . . 4 5 . . . Projectiles 9 | . . 4 5 . . . Explosions . | . . . . . . . Melee . | . . . . . . . Knockbacks 3 | . . 3 . . . . Impact . | . . . . . . . Kinetic 2 | . . 2 . . . . Secondary 1 | . . 1 . . . . Self-Inflicted Damage . | . . . . . . . Shots . | . . . . . . . Rammed . | . . . . . . . Targets Rammed . | . . . . . . . Kicked . | . . . . . . . Crushed . | . . . . . . . Highest Temperature 306 | 20 27 216 306 . . 40 Average Temperature 75 | 9 9 88 136 . . 10 Received Heat Transfer 725 | . . 176 183 . . 366 Effects 3 | . . . 3 . . . Energy Bleed 2 | . . . 2 . . . Interference 1 | . . . 1 . . . Siege Activations . | . . . . . . . Robots Corrupted . | . . . . . . . Combat Hostiles . | . . . . . . . Parts Fried 2 | 2 . . . . . . Impact Corruptions . | . . . . . . . Robots Melted . | . . . . . . . Combat Hostiles . | . . . . . . . Parts Melted 5 | . . . 5 . . . Heat Transferred 3120 | . . 296 2516 148 . 160 Parts Sabotaged . | . . . . . . . Parts Stolen . | . . . . . . . Parts Stripped . | . . . . . . . Power Chain Reactions . | . . . . . . . Alert | -11 -10 -10 -9 -9 -7 -6 ------- Run | Yrd Mat Min Mat Min Zio Pro Peak Influence 382 | 20 110 105 382 164 . . Initial 78 | . 13 42 . 78 . . Average 82 | 9 48 42 187 117 . . Maximum Alert Level 1 | . . . 1 . . . Low Security (%) 89 | 100 100 100 57 100 . . Level 1 10 | . . . 42 . . . Level 2 . | . . . . . . . Level 3 . | . . . . . . . Level 4 . | . . . . . . . Level 5 . | . . . . . . . High Security . | . . . . . . . Max Security . | . . . . . . . Squads Dispatched 3 | . 2 . 1 . . . Investigation 1 | . 1 . . . . . Extermination . | . . . . . . . Reinforcement 2 | . 1 . 1 . . . Assault . | . . . . . . . Garrison . | . . . . . . . Intercept . | . . . . . . . Searches Triggered . | . . . . . . . Construction Impeded . | . . . . . . . Haulers Reinforced . | . . . . . . . Active Scanning Responses . | . . . . . . . Cargo Convoy Interrupts . | . . . . . . . Stealth | -11 -10 -10 -9 -9 -7 -6 --------- Run | Yrd Mat Min Mat Min Zio Pro Distress Signals 2 | . . . 2 . . . Communications Jammed . | . . . . . . . Distress Signals . | . . . . . . . Times Spotted 48 | . 4 9 19 3 . 13 Peak Tracking Total 5 | . 1 5 4 3 . 4 Tactical Retreats 3 | . . . 2 . . 1 Traps | -11 -10 -10 -9 -9 -7 -6 ------- Run | Yrd Mat Min Mat Min Zio Pro Traps Triggered 1 | . 1 . . . . . Indirectly . | . . . . . . . Trap Hack Attempts . | . . . . . . . Triggered . | . . . . . . . Disarmed . | . . . . . . . Reprogrammed . | . . . . . . . Reused . | . . . . . . . Traps Extracted . | . . . . . . . Installed . | . . . . . . . Triggered 1 | . . . . . . 1 Machines | -11 -10 -10 -9 -9 -7 -6 ---------- Run | Yrd Mat Min Mat Min Zio Pro Machines Disabled . | . . . . . . . Max in Single Turn . | . . . . . . . Machines Repaired . | . . . . . . . Machines Dismantled . | . . . . . . . Machines Sabotaged . | . . . . . . . Overloaded Fab Kills . | . . . . . . . Hacking | -11 -10 -10 -9 -9 -7 -6 --------- Run | Yrd Mat Min Mat Min Zio Pro Machines Accessed 3 | . 2 . 1 . . . Terminals 1 | . 1 . . . . . Fabricators . | . . . . . . . Repair Stations . | . . . . . . . Recycling Units 1 | . 1 . . . . . Scanalyzers 1 | . . . 1 . . . Garrison Access . | . . . . . . . Total Hacks 5 | . 3 . 2 . . . Successful 4 | . 2 . 2 . . . Failed 1 | . 1 . . . . . Catastrophic 1 | . 1 . . . . . Database Lockouts . | . . . . . . . Manual . | . . . . . . . Terminals 2 | . 2 . . . . . Fabricators . | . . . . . . . Repair Stations . | . . . . . . . Recycling Units 1 | . 1 . . . . . Scanalyzers 2 | . . . 2 . . . Garrison Access . | . . . . . . . Terminal Hacks 1 | . 1 . . . . . Maintenance Status 1 | . 1 . . . . . Fabricator Hacks . | . . . . . . . Repair Station Hacks . | . . . . . . . Recycling Unit Hacks 1 | . 1 . . . . . Report Inventory 1 | . 1 . . . . . Scanalyzer 2 | . . . 2 . . . Insert Component 1 | . . . 1 . . . Analyze 1 | . . . 1 . . . Garrison Access Hacks . | . . . . . . . Unauthorized Hacks . | . . . . . . . Terminals . | . . . . . . . Fabricators . | . . . . . . . Repair Stations . | . . . . . . . Recycling Units . | . . . . . . . Scanalyzers . | . . . . . . . Garrison Access . | . . . . . . . Data Cores Recovered . | . . . . . . . Used . | . . . . . . . Hacking Detections 1 | . 1 . . . . . Full Trace Events . | . . . . . . . Feedback Events . | . . . . . . . Feedback Blocked . | . . . . . . . Robot Schematics Acquired . | . . . . . . . Robots Built . | . . . . . . . Authchips . | . . . . . . . Time . | . . . . . . . Total Robot Build Rating . | . . . . . . . Part Schematics Acquired 1 | . . . 1 . . . Parts Built . | . . . . . . . Authchips . | . . . . . . . Time . | . . . . . . . Total Part Build Rating . | . . . . . . . Parts Repaired . | . . . . . . . Time . | . . . . . . . Parts Recycled . | . . . . . . . Recycled Matter . | . . . . . . . Retrieved Matter . | . . . . . . . Retrieved Components . | . . . . . . . Parts Scanalyzed 1 | . . . 1 . . . Part Schematics Acquired 1 | . . . 1 . . . Parts Damaged . | . . . . . . . Bothacking | -11 -10 -10 -9 -9 -7 -6 ------------ Run | Yrd Mat Min Mat Min Zio Pro Used RIF Installer . | . . . . . . . Robots Hacked . | . . . . . . . Non-combat . | . . . . . . . Combat . | . . . . . . . Robot Hacks Applied . | . . . . . . . Relay Couplers Released . | . . . . . . . Fabnet Peak Effective % . | . . . . . . . Robots Rewired . | . . . . . . . Allies Hacked . | . . . . . . . Hacks Repelled . | . . . . . . . Allies | -11 -10 -10 -9 -9 -7 -6 -------- Run | Yrd Mat Min Mat Min Zio Pro Total Allies 4 | . . . . . 4 . Largest Group 4 | . . . . . 4 3 Highest-Rated Group 152 | . . . . . 152 112 Highest-Rated Ally 40 | . . . . . 40 38 Total Orders . | . . . . . . . Ally Attacks 11 | . . . . . . 11 Total Damage 521 | . . . . . . 521 Kills 4 | . . . . . . 4 Allies Corrupted . | . . . . . . . Allies Melted . | . . . . . . . Intel | -11 -10 -10 -9 -9 -7 -6 ------- Run | Yrd Mat Min Mat Min Zio Pro Robot Analysis Total . | . . . . . . . Derelict Logs Recovered 2 | . . 1 . . 1 . Drone Launches . | . . . . . . . Drone Recoveries . | . . . . . . . Exploration | -11 -10 -10 -9 -9 -7 -6 ------------- Run | Yrd Mat Min Mat Min Zio Pro Turns Passed 3309 | 118 363 823 468 146 847 544 Spaces Moved 2207 | 88 346 402 262 128 725 256 Core 54 | 54 . . . . . . Treads 81 | . . . . . . 81 Legs . | . . . . . . . Wheels 2072 | 34 346 402 262 128 725 175 Hover . | . . . . . . . Flight . | . . . . . . . Fastest Speed 50 | 50 80 80 80 100 100 93 Average Speed 93 | 61 80 80 96 100 100 118 Slowest Speed 250 | 80 80 95 100 100 100 250 Overloaded Moves . | . . . . . . . Propulsion Burnouts . | . . . . . . . Robots Hopped . | . . . . . . . Cave-ins Triggered . | . . . . . . . Exploration Rate (%) 43 | 5 50 63 32 34 78 39 Regions Visited 6 Branch Regions 4 Pre-discovered Areas . | . . . . . . . Known Exits Taken 1 | . . . 1 . . . Unknown Exits Taken 5 | 1 1 1 . 1 1 . Scrap Searched 4 | . . 1 . 1 2 . Spaces Dug . | . . . . . . . Terrain Destroyed 37 | . . . . 32 . 5 Melee . | . . . . . . . Projectile 5 | . . . . . . 5 AOE 32 | . . . . 32 . . Terrain Rammed . | . . . . . . . Walls Destroyed . | . . . . . . . Machines Disabled . | . . . . . . . Actions | -11 -10 -10 -9 -9 -7 -6 --------- Run | Yrd Mat Min Mat Min Zio Pro Total 3184 | 133 410 856 369 139 848 429 Wait 708 | 11 32 414 23 4 113 111 Move 2201 | 87 345 401 261 127 724 256 Hop . | . . . . . . . Pick Up 54 | 14 10 7 11 1 5 6 Fast Attach 4 | 1 . . . . . 3 Attach 19 | 6 . 3 4 . . 6 Detach . | . . . . . . . Swap 27 | 1 3 4 8 2 1 8 Drop 32 | 2 8 4 8 1 5 4 Fire 139 | 11 12 23 54 4 . 35 Melee . | . . . . . . . Ram . | . . . . . . . Kick . | . . . . . . . Crush . | . . . . . . . Escape Stasis . | . . . . . . . Rewire . | . . . . . . . Trap . | . . . . . . . Miscellaneous . | . . . . . . . Route ------- -11/Scrapyard -10/Materials -10/Mines -9/Materials (discovered 4 exits: Mat / *Min x2 / Sto) -9/Mines (discovered 2 exits: *Mat / [*Zio]) -7/Zion -6/Proximity Caves History --------- Turn | Location | Event 3 | -11/Scrapyard | Discovered new exit (range 16) 119 | -11/Scrapyard | Entered Materials 210 | -10/Materials | Discovered new exit (range 8) 312 | -10/Materials | Build established: Mutant 482 | -10/Materials | Entered Mines 805 | -10/Mines | Excavation squad dispatched 805 | -10/Mines | A large section of the Mines collapsed 976 | -10/Mines | Found a damaged Exp. Sensor Array with a note attached 978 | -10/Mines | Found Prototype Device 979 | -10/Mines | Identified Exp. Sensor Array 1055 | -10/Mines | Excavation squad dispatched 1068 | -10/Mines | Learned 4 Materials zone layouts 1155 | -10/Mines | Lost 3 parts (2n1w) 1288 | -10/Mines | Discovered new exit (range 6) 1305 | -10/Mines | Entered Materials 1305 | -9/Materials | Evolved 2 slots: Propulsion x1, Utility x1 1306 | -9/Materials | Identified exit to Mines 1306 | -9/Materials | Identified exit to Storage 1306 | -9/Materials | Identified exit to Materials 1691 | -9/Materials | Build established: Scavenger-Mutant 1757 | -9/Materials | Discovered exit to Mines (range 7) 1773 | -9/Materials | Entered Mines 1815 | -9/Mines | Received a Rocket Launcher from a helpful Derelict 1835 | -9/Mines | Discovered exit to Materials (range 5) 1915 | -9/Mines | A Derelict revealed a hidden shortcut to a safe place 1919 | -9/Mines | Entered Zion 2068 | -7/Zion | Build established: Mutant 2442 | -7/Zion | Imprinted 2444 | -7/Zion | Declared Zion's savior 2745 | -7/Zion | Discovered new exit (range 14) 2766 | -7/Zion | Entered Proximity Caves 2766 | -6/Proximity Caves | Accompanied by 3 allies 2806 | -6/Proximity Caves | Core integrity fell below 50% 2988 | -6/Proximity Caves | Spotted B-75 Beast 3058 | -6/Proximity Caves | Destroyed B-75 Beast 3067 | -6/Proximity Caves | Lost 3 allies 3077 | -6/Proximity Caves | Lost 3 parts (2u1w) 3230 | -6/Proximity Caves | Attracted the attention of an 0b10 checkpoint 3257 | -6/Proximity Caves | Core integrity fell below 20% 3309 | -6/Proximity Caves | Lost 4 parts (1p1n1u1w) 3310 | -6/Proximity Caves | Destroyed by H-66 Slayer with Gauss Rifle Last Messages --------------- Destroyed Lgt. Treads. Slug penetrates Wall. Arm. Treads destroyed. Cooling System destroyed. Hvy. Ion Engine destroyed. Slug penetrates Y-54 Guardian. Destroyed Imp. Heat Sink. Y-54 Guardian destroyed. Acquired 72 matter. Acquired 64 matter. Acquired Imp. Deuterium Engine. C-30 ARC bursts open, deploying its payload. H-66 Slayer unfolds itself. Penetrated by Slug. Slug penetrates Wall. Slug penetrates H-66 Slayer. Penetrated by Slug. Slug penetrates Wall. Penetrated by Slug. Slug penetrates Wall. Map ----- +----------------------------------------------------+ | ### ## ##????????????????##### #####% | | ### ## #?????????????????????# ""## | | ##????????????????????# %| % | | # #????????????????????#####[% | | | ## #?????????????????####### "# | | ?## ##????????????###### #"#### ### | | ??## ###??????????#### ## #???##### #?? | | ???## #?########??## #?# #####???# #?? | | ????# #?# ## ### ##??# #?? | | #???## ? #### ##? | | #????## ### ## | | #?????####??# ## #?## | | #???????????# ????## #??## | | #??????????# ?????????# #???## ########## | | #?????????????????????# ##????######????????#### | | #????????????????????# #??????????????????????## | | ???????????????????# #???????????????????????# | | ??????????????????# #???????????????????????# | | ## ??????????????????# #???????????????????????? | | ?#????????????????????# #???????????????????????? | | ??????????????????????# #???????????????????????? | | ??????????????????????# #????######?????????????? | | ??????????????????##### ##?? #????????????? | | ?????????????????## ## #????????????## | | ?????????????????# % % #?????????????# | | ????????????????# @% ????????? | | ????????????????# ; ###???????????? | | ???????????????# % #?????????????? | | ????????????# ^ h#???????????? | | ???????????# # %#???????????? | | ??????????? #### % ###?## #???????????? | | ??????????? ###???; & ;# #??????#???????????? | | ??????????? ??????# # #??????????????????? | | ??????????????????? ;#### #??????????????????? | | ?????????????????? #;#???? ??????????????????? | | ?????????????????######?????? ?????????????????? | | ????????????????????????????? ?????????????????? | | ????????????????????????????? ?????????????????? | | ??????????????????????????????? #????????????????? | | ?????????????????????????????????????????????????? | | ?????????????????????????????????????????????????? | | ?????????????????????????????????????????????????? | | ?????????????????????????????????????????????????? | | ?????????????????????????????????????????????????? | | ?????????????????????????????????????????????????? | | ?????????????????????????????????????????????????? | | ?????????????????????????????????????????????????? | | ?????????????????????????????????????????????????? | | ?????????????????????????????????????????????????? | | ?????????????????????????????????????????????????? | +----------------------------------------------------+ Best States ------------- Heat Dissipation 50 Energy Generation 18 Energy Capacity 290 Matter Stores 300 Matter Capacity 300 Sight Range 16 Robot Scan Range 20 Terrain Scan Range 16 Terrain Scan Density 10 ECM Strength 1 Evasion (%) 50 Recoil Reduction 3 Item Schematics ----------------- Com. Wheel | -9/Materials | Scanalyzed Robot Schematics ------------------ None Fabricated ------------ Nothing Alien Tech Used ----------------- None Achievements -------------- The One Challenges ------------ None Game ------ Seed AerolevVisualSubcomponent Manual? 0 Play Time 00:36:35 Cumulative 13.7 hours Start 2024.05.16 @ 00:19:36 End 2024.05.16 @ 00:53:29 Sessions 1 Manual Loads 0 Difficulty Rogue Special Mode None Game No. 17 Rogue 17 Adventurer 0 Explorer 0 Win Type - Total 0 Types 0/0/0/0/0/0/0/0/0 Lore% 13 Gallery% 19 Achievement% 17 Wizard Run 0 Options --------- Layout 1 ASCII 0 Keyboard 0 Movement Mouse Keybinds 0 Fullscreen 2 Font 24/Smallcaps Map View 50x35 Zoom Use 0% Tactical HUD 0 Map Filters NONE Filters NONE Steam 1 RUN: 42e8aece-1f9d-4b09-863b-65b7b30f1c3d